Cogmind - Beta 13 X2 --- EXPLORER MODE // 2024.01.01 @ 04:07:46 // Winter2022/Polymind Player: Minty Result: Destroyed by DAS Turret with DAS Cannon Performance ------------- Evolutions (0) 0 Regions Visited (3) 600 Robots Destroyed (5) 25 Value Destroyed (117) 117 Prototype IDs (3) 60 Alien Tech Used (0) 0 Bonus (1469) 1469 TOTAL SCORE: 1891 Bonus ------- Polymind Skill 1469 Cogmind --------- Core Integrity 0/250 Matter 0/0 Energy 123/125 System Corruption 0% Temperature Cool (4) Movement Hovering (66) Location -10/Exiles Parts ------- > --- POWER (1) -------- Cold Fusion Reactor > --- PROPULSION (2) --- Makeshift Hover Unit Makeshift Hover Unit > --- UTILITY (22) ----- EX Chip 1 EX Chip 1 EX Chip 1 EX Chip 1 EX Chip 1 EX Chip 1 EX Chip 1 EX Chip 1 EX Chip 1 EX Chip 1 EX Chip 2 EX Chip 2 EX Chip 2 EX Chip 2 EX Chip 2 EX Chip 2 EX Chip 2 EX Chip 2 EX Chip 2 EX Chip 2 Advanced Component Analysis Suite System Purifier > --- WEAPON (0) ------- (None) > --- INVENTORY (1) ---- (None) Peak State ------------ > --- POWER ------------ Light Neutrino Core > --- PROPULSION ------- Gravmag Array > --- UTILITY ---------- Advanced Transmission Jammer EX Chip 1 EX Chip 1 EX Chip 1 EX Chip 1 EX Chip 1 EX Chip 1 EX Chip 1 EX Chip 1 EX Chip 1 EX Chip 1 EX Chip 2 EX Chip 2 EX Chip 2 EX Chip 2 EX Chip 2 EX Chip 2 EX Chip 2 EX Chip 2 EX Chip 2 EX Chip 2 Improved System Guard Advanced Recalibrator > --- WEAPON ----------- (None) > --- INVENTORY -------- (None) [Rating: 79] Favorites ----------- Power Light Nuclear Core Engine Light Ion Engine Power Core Light Nuclear Core Reactor Cold Fusion Reactor Propulsion Aluminum Leg Leg Aluminum Leg Wheel Wheel Hover Unit Makeshift Hover Unit Utility Improved Heat Sink Device Improved Heat Sink Storage Medium Matter Pod Processor Improved System Guard Hackware EX Chip 1 Weapon Particle Gun Energy Gun Particle Gun Build | -11 -10 -10 -10 ------- Run | Yrd Mat Min Exi Slots Evolved . | . . . . Power . | . . . . Propulsion . | . . . . Utility . | . . . . Weapon . | . . . . Parts Attached . | . . . . Power . | . . . . Engine . | . . . . Core . | . . . . Reactor . | . . . . Propulsion . | . . . . Treads . | . . . . Leg . | . . . . Wheel . | . . . . Hover . | . . . . Flight . | . . . . Utility . | . . . . Device . | . . . . Storage . | . . . . Processor . | . . . . Hackware . | . . . . Protection . | . . . . Artifact . | . . . . Weapon . | . . . . Energy Gun . | . . . . Energy Cannon . | . . . . Ballistic Gun . | . . . . Ballistic Cannon . | . . . . Launcher . | . . . . Special Weapon . | . . . . Impact Weapon . | . . . . Slashing Weapon . | . . . . Piercing Weapon . | . . . . Special Melee Weapon . | . . . . Unidentified Prototypes . | . . . . Parts Lost 2 | . . 2 . Power 1 | . . 1 . Propulsion . | . . . . Utility . | . . . . Weapon 1 | . . 1 . Highest Loss Streak 1 | . . 1 . To Critical Strikes . | . . . . Average Slot Usage (%) 85 | . 48 92 87 Engine 2 | . 12 1 . Core 11 | . . 12 12 Leg 30 | . . 37 25 Wheel 4 | . 24 2 . Device 15 | . . 18 14 Storage 2 | . 12 1 . Hackware 3 | . . . 19 Energy Gun 14 | . . 18 12 Naked Turns 27 | . 20 1 6 Heaviest Build 17 | . 5 9 17 Greatest Support 24 | 3 20 20 24 Greatest Overweight (x) . | . . . . Average Overweight (x) . | . . . . Largest Inventory Capacity 1 | . 1 1 1 Average Capacity . | . . . . Most Carried . | . . . . Average Carried . | . . . . Final Capacity 1 | . 1 1 1 Final Carried . | . . . . Class Distribution -------------------- 77% | Grunt 11% | Worker 6% | Cogmind 5% | Thief Dominant Class ---------------- Worker | -10/Materials Grunt | -10/Mines Grunt | -10/Exiles Resources | -11 -10 -10 -10 ----------- Run | Yrd Mat Min Exi Matter Collected . | . . . . Remotely . | . . . . Salvage Created 83 | . . 83 . Parts 5 | . . 5 . Haulers Intercepted . | . . . . Recyclers Shooed 1 | . . 1 . Parts Field Recycled . | . . . . Retrieved Matter . | . . . . Parts Self-Destructed . | . . . . Prevented . | . . . . Kills | -11 -10 -10 -10 ------- Run | Yrd Mat Min Exi Combat Hostiles Destroyed 4 | . . 4 . Guns 4 | . . 4 . Classes Destroyed 2 | . . 2 . Worker 1 | . . 1 . Grunt 3 | . . 3 . Best Kill Streak 2 | . . 2 . Combat Bots Only 1 | . . 1 . Max Kills in Single Turn 1 | . . 1 . Gunslinging . | . . . . Exploded . | . . . . Melee . | . . . . Uniques/NPCs Destroyed 1 | . . 1 . YI-UF0 (-10/Mines) Combat | -11 -10 -10 -10 -------- Run | Yrd Mat Min Exi Hostile Shots Fired 76 | . . 41 35 Missed 31 | . . 12 19 Damage Taken 662 | . . 393 269 Core 262 | . . 77 185 Absorbed by Shields . | . . . . Ignored by Resistances 395 | . . 240 155 Core Remaining (%) 100 | 100 . . . Volleys Fired 33 | . . 33 . Largest 1 | . . 1 . Hottest 65 | . . 65 . Shots Fired 33 | . . 33 . Gun 33 | . . 33 . Cannon . | . . . . Launcher . | . . . . Special . | . . . . Kinetic . | . . . . Thermal 33 | . . 33 . Explosive . | . . . . Electromagnetic . | . . . . Robot Hit Streak 13 | . . 13 . Robot Miss Streak 3 | . . 3 . Penetration Max . | . . . . Secondary Targets . | . . . . Shots Hit Robots 27 | . . 27 . Core Hits 10 | . . 10 . Critical Kills . | . . . . Critical Parts Destroyed . | . . . . Critical Strikes 2 | . . 2 . Burn 2 | . . 2 . Melee Attacks . | . . . . Impact . | . . . . Slashing . | . . . . Piercing . | . . . . Sneak Attacks . | . . . . Combat Hostiles . | . . . . Follow-up Attacks . | . . . . Damage Inflicted 430 | . . 430 . Guns 424 | . . 424 . Cannons . | . . . . Explosions . | . . . . Melee . | . . . . Ramming 6 | . . 6 . Kinetic . | . . . . Thermal 424 | . . 424 . Explosive . | . . . . Electromagnetic . | . . . . Impact . | . . . . Slashing . | . . . . Piercing . | . . . . Highest Corruption . | . . . . Average Corruption . | . . . . Corruption Purged . | . . . . Corruption Blocked . | . . . . Overload Shots . | . . . . Overflow Damage . | . . . . Projectiles . | . . . . Explosions . | . . . . Melee . | . . . . Knockbacks . | . . . . Impact . | . . . . Kinetic . | . . . . Secondary . | . . . . Self-Inflicted Damage . | . . . . Shots . | . . . . Rammed . | . . . . Targets Rammed 2 | . . 2 . Kicked 2 | . . 2 . Crushed . | . . . . Highest Temperature 183 | . . 183 . Average Temperature 69 | . . 69 . Received Heat Transfer 138 | . . 129 9 Siege Activations . | . . . . Robots Corrupted . | . . . . Combat Hostiles . | . . . . Parts Fried . | . . . . Impact Corruptions . | . . . . Robots Melted . | . . . . Combat Hostiles . | . . . . Parts Melted 2 | . . 2 . Heat Transferred 1147 | . . 1147 . Parts Sabotaged . | . . . . Parts Stolen . | . . . . Parts Stripped . | . . . . Power Chain Reactions . | . . . . Missiles Intercepted . | . . . . Alert | -11 -10 -10 -10 ------- Run | Yrd Mat Min Exi Peak Influence 61 | . 5 61 . Initial 1 | . . 1 . Average 22 | . 2 26 . Maximum Alert Level . | . . . . Low Security (%) 100 | . 100 100 . Level 1 . | . . . . Level 2 . | . . . . Level 3 . | . . . . Level 4 . | . . . . Level 5 . | . . . . High Security . | . . . . Max Security . | . . . . Squads Dispatched . | . . . . Investigation . | . . . . Extermination . | . . . . Reinforcement . | . . . . Assault . | . . . . Garrison . | . . . . Intercept . | . . . . Searches Triggered . | . . . . Construction Impeded . | . . . . Haulers Reinforced . | . . . . Active Scanning Responses . | . . . . Cargo Convoy Interrupts . | . . . . Stealth | -11 -10 -10 -10 --------- Run | Yrd Mat Min Exi Distress Signals . | . . . . Communications Jammed . | . . . . Distress Signals . | . . . . Times Spotted 20 | . 2 6 12 Peak Tracking Total 10 | . . 2 10 Tactical Retreats 2 | . . 1 1 Traps | -11 -10 -10 -10 ------- Run | Yrd Mat Min Exi Traps Triggered . | . . . . Indirectly . | . . . . Trap Hack Attempts . | . . . . Triggered . | . . . . Disarmed . | . . . . Reprogrammed . | . . . . Reused . | . . . . Traps Extracted . | . . . . Installed . | . . . . Triggered . | . . . . Machines | -11 -10 -10 -10 ---------- Run | Yrd Mat Min Exi Machines Disabled . | . . . . Max in Single Turn . | . . . . Machines Repaired . | . . . . Machines Dismantled . | . . . . Machines Sabotaged . | . . . . Overloaded Fab Kills . | . . . . Hacking | -11 -10 -10 -10 --------- Run | Yrd Mat Min Exi Machines Accessed 1 | . 1 . . Terminals 1 | . 1 . . Fabricators . | . . . . Repair Stations . | . . . . Recycling Units . | . . . . Scanalyzers . | . . . . Garrison Access . | . . . . Total Hacks 3 | . 3 . . Successful 2 | . 2 . . Failed 1 | . 1 . . Catastrophic . | . . . . Database Lockouts . | . . . . Manual 1 | . 1 . . Terminals 3 | . 3 . . Fabricators . | . . . . Repair Stations . | . . . . Recycling Units . | . . . . Scanalyzers . | . . . . Garrison Access . | . . . . Terminal Hacks 1 | . 1 . . Branch Access Points 1 | . 1 . . Fabricator Hacks . | . . . . Repair Station Hacks . | . . . . Recycling Unit Hacks . | . . . . Scanalyzer . | . . . . Garrison Access Hacks . | . . . . Unauthorized Hacks 1 | . 1 . . Terminals 1 | . 1 . . Botnet 1 | . 1 . . Fabricators . | . . . . Repair Stations . | . . . . Recycling Units . | . . . . Scanalyzers . | . . . . Garrison Access . | . . . . Data Cores Recovered . | . . . . Used . | . . . . Hacking Detections 1 | . 1 . . Full Trace Events . | . . . . Feedback Events . | . . . . Feedback Blocked . | . . . . Robot Schematics Acquired . | . . . . Robots Built . | . . . . Authchips . | . . . . Time . | . . . . Total Robot Build Rating . | . . . . Part Schematics Acquired . | . . . . Parts Built . | . . . . Authchips . | . . . . Time . | . . . . Total Part Build Rating . | . . . . Parts Repaired . | . . . . Time . | . . . . Parts Recycled . | . . . . Recycled Matter . | . . . . Retrieved Matter . | . . . . Retrieved Components . | . . . . Parts Scanalyzed . | . . . . Part Schematics Acquired . | . . . . Parts Damaged . | . . . . Bothacking | -11 -10 -10 -10 ------------ Run | Yrd Mat Min Exi Used RIF Installer . | . . . . Robots Hacked 2 | . . 2 . Non-combat . | . . . . Combat 2 | . . 2 . Robot Hacks Applied 2 | . . 2 . find_shortcuts 2 | . . 2 . Relay Couplers Released . | . . . . Fabnet Peak Effective % . | . . . . Robots Rewired . | . . . . Allies Hacked . | . . . . Hacks Repelled . | . . . . Allies | -11 -10 -10 -10 -------- Run | Yrd Mat Min Exi Total Allies . | . . . . Largest Group . | . . . . Highest-Rated Group . | . . . . Highest-Rated Ally . | . . . . Total Orders . | . . . . Ally Attacks . | . . . . Total Damage . | . . . . Kills . | . . . . Allies Corrupted . | . . . . Allies Melted . | . . . . Intel | -11 -10 -10 -10 ------- Run | Yrd Mat Min Exi Robot Analysis Total 2 | . 1 1 . Derelict Logs Recovered . | . . . . Drone Launches . | . . . . Drone Recoveries . | . . . . Exploration | -11 -10 -10 -10 ------------- Run | Yrd Mat Min Exi Turns Passed 435 | . 58 292 85 Spaces Moved 378 | 1 88 193 96 Core 55 | 1 39 2 13 Treads . | . . . . Legs 223 | . . 176 47 Wheels 64 | . 49 15 . Hover 36 | . . . 36 Flight . | . . . . Fastest Speed 50 | 50 50 50 50 Average Speed 97 | 50 66 116 88 Slowest Speed 120 | 50 80 120 120 Overloaded Moves . | . . . . Propulsion Burnouts . | . . . . Robots Hopped . | . . . . Cave-ins Triggered . | . . . . Exploration Rate (%) 29 | 2 28 50 38 Regions Visited 3 Branch Regions 2 Pre-discovered Areas . | . . . . Known Exits Taken 3 | 1 1 1 . Unknown Exits Taken . | . . . . Scrap Searched . | . . . . Spaces Dug . | . . . . Terrain Destroyed . | . . . . Melee . | . . . . Projectile . | . . . . AOE . | . . . . Terrain Rammed . | . . . . Walls Destroyed . | . . . . Machines Disabled . | . . . . Actions | -11 -10 -10 -10 --------- Run | Yrd Mat Min Exi Total 410 | . 87 227 96 Wait . | . . . . Move 375 | . 87 192 96 Hop . | . . . . Pick Up . | . . . . Fast Attach . | . . . . Attach . | . . . . Detach . | . . . . Swap . | . . . . Drop . | . . . . Fire 33 | . . 33 . Melee . | . . . . Ram . | . . . . Kick 2 | . . 2 . Crush . | . . . . Escape Stasis . | . . . . Rewire . | . . . . Trap . | . . . . Miscellaneous . | . . . . Route ------- -11/Scrapyard -10/Materials (discovered 2 exits: *Min x2) -10/Mines -10/Exiles History --------- Turn | Location | Event 1 | -11/Scrapyard | Identified exit to Materials 1 | -11/Scrapyard | Discovered exit to Materials (range 0) 1 | -11/Scrapyard | Entered Materials 35 | -10/Materials | Identified exit to Mines 59 | -10/Materials | Entered Mines 172 | -10/Mines | Destroyed YI-UF0 345 | -10/Mines | Deemed a non-threat by the Exiles lab entrance 345 | -10/Mines | Identified exit to Exiles 345 | -10/Mines | Discovered exit to Exiles (range 5) 351 | -10/Mines | Entered Exiles 380 | -10/Exiles | Met 8R-AWN 402 | -10/Exiles | Met EX-HEX 413 | -10/Exiles | Attacked by the Exiles 414 | -10/Exiles | Took control of EX-HEX 419 | -10/Exiles | Core integrity fell below 50% 428 | -10/Exiles | Took control of EX-BIN 435 | -10/Exiles | Core integrity fell below 20% 436 | -10/Exiles | Destroyed by DAS Turret with DAS Cannon Last Messages --------------- little cave for long, and we could use some help with the project in the back. 00408_ Released control of G-47 Trooper. 00409_ G-47 Trooper reactivates. 00412_ as-66853 springs to life. 00412_ Assembled Analyzer disabled. 00412_ as-58284 springs to life. 00412_ as-40576 springs to life. 00412_ as-57403 springs to life. 00412_ G-47 Trooper destroyed. 00413_ EXILES: Hostile robot within lab perimeter. Defensive protocols time, folks! 00414_ Took control of EX-HEX. 00417_ Machine disabled. 00421_ EX-BIN: "I just want to science!" 00426_ Machine disabled. 00428_ Released control of EX-HEX. 00428_ Took control of EX-BIN. 00428_ P0-BQI(z) destroyed. 00430_ EX-HEX reactivates. Map ----- +----------------------------------------------------+ | ?????????????????????????????????????????????????? | | ?????????????????????????????????????????????????? | | ?????????????????????????????????????????????????? | | ?????????????????????????????????????????????????? | | ?????????????????????????????????????????????????? | | ?????????????????????????????????????????????????? | | ?????????????????????????????????????????????????? | | ?????????????????????????????????????????????????? | | ?????????????????????????????????????????????????? | | ????????????????????????????????????????? ????? | | ??????????????????????????????????????? ????? | | ??????????????????????????????????????" ???? | | ????????????????????????##???????????#" ?? | | ???????????????????????? ""??????????" ? | | ????????????????????????" """?????????# ? | | ????????????????????????" ?????????# ?? | | ???????????????????????"" ?????????#" ??? | | ???????????????????????"" ??????????#" ???? | | ??????????????????????? "??????????#" ????? | | ????????????????????????" "?????????##" #????? | | ????????????????????????# #????????##"" #????? | | ??????????????????????### ###?######"" #????? | | ??????????? """#####X# #"###""""""" ##???? | | ?????????? """""" " "" ##??? | | ?????????? % "" """ " % #### | | ?????????? c " " | | ???????????# a a % c | | ?????????????# a | | ?????????????## | | ??????????????## % | | ???????????????##" | | ????????????????#""" """""" | | ????????????????#" ######""" | | ?????????????????" ""##????#####"" | | ????????????????""" """##?????????##"""% | | ????????????????"" """##???????????#"""" | | ?????????????????" ""#?????????????"" | | ????????????????? #???????????????"" | | ?????????????????"t ???????????????? | | ??????????????????? ??????????????? | | ????????????????????? ??????????????? | | ?????????????????????? ????????????????? | | ???????????????????????????????????????????????? | | ????????????????????????????????????????????????? | | ?????????????????????????????????????????????????? | | ?????????????????????????????????????????????????? | | ?????????????????????????????????????????????????? | | ?????????????????????????????????????????????????? | | ?????????????????????????????????????????????????? | | ?????????????????????????????????????????????????? | +----------------------------------------------------+ Best States ------------- Heat Dissipation 40 Energy Generation 34 Energy Capacity 125 Matter Stores 25 Matter Capacity 125 Sight Range 16 Terrain Scan Density 10 Jamming Range 16 Corruption Containment 12 Resistance: KI 35 Resistance: TH 35 Resistance: EX 35 Resistance: EM 100 Resistance: I 35 Resistance: S 35 Resistance: P 35 Evasion (%) 55 Offensive Hacking 90 Defensive Hacking 70 Item Schematics ----------------- None Robot Schematics ------------------ None Fabricated ------------ Nothing Alien Tech Used ----------------- None Achievements -------------- None Challenges ------------ None Polymind | -11 -10 -10 -10 ---------- Run | Yrd Mat Min Exi Hosts 5 | . 1 2 2 Combat Hostiles 2 | . . 2 . Allies . | . . . . Unique Host Classes 3 | . 1 1 1 Average Host Suspicion 60 | . 8 83 . Unsuspicious Activity 151 | . 20 101 30 Returns to Shadow 1 | . . 1 . Fuzzy Dispatches . | . . . . Protomatter Created 92 | . . 92 . Used 125 | . 5 60 60 Decayed . | . . . . Highest Spend 30 | . 5 30 30 Top 5 Hosts by Kills: G-47 Trooper (-10/Mines: 2) G-47 Trooper (-10/Mines: 2) Game ------ Seed PhysicsSingularityUnit Manual? 0 Play Time 00:03:36 Cumulative 558.0 hours Start 2024.01.01 @ 04:05:01 End 2024.01.01 @ 04:07:46 Sessions 1 Manual Loads 0 Difficulty Explorer Special Mode Winter2022/Polymind Game No. 438 Rogue 167 Adventurer 123 Explorer 148 Win Type - Total 24 Types 19/0/3/1/0/0/0/1/0 Lore% 76 Gallery% 89 Achievement% 74 Wizard Run 0 Options --------- ASCII 0 Keyboard 1 Movement Numpad Keybinds 0 Fullscreen 2 Font 18/X11Bold Map View 76x50 Zoom Use 0% Tactical HUD 1 Map Filters NONE Filters NONE Steam 1 RUN: f80a40c7-e7f0-45b4-936f-a620b7ec2dfe